[Event "Late-Titled-Tuesday-Blitz-September-19-2023"]
[Site "Chess.com"]
[Date "2023.09.19"]
[Round "7"]
[White "Deeper44"]
[Black "djano"]
[Result "1/2-1/2"]
[WhiteElo "2537"]
[BlackElo "2626"]
[TimeControl "180+1"]
[EndTime "15:15:24 PDT"]
[Termination "Game drawn by stalemate"]

1. d4 {[%clk 0:03:00]} 1... d5 {[%clk 0:02:58.9]} 2. c4 {[%clk 0:02:59.9]} 2...
e6 {[%clk 0:02:59.4]} 3. Nf3 {[%clk 0:03:00.4]} 3... c5 {[%clk 0:02:59.3]} 4.
cxd5 {[%clk 0:03:00.3]} 4... exd5 {[%clk 0:02:59.3]} 5. Nc3 {[%clk 0:03:00.5]}
5... Nf6 {[%clk 0:02:57.9]} 6. g3 {[%clk 0:03:00.7]} 6... Nc6 {[%clk 0:02:55.9]}
7. Bg2 {[%clk 0:03:00.5]} 7... c4 {[%clk 0:02:55]} 8. O-O {[%clk 0:02:57.8]}
8... Be7 {[%clk 0:02:54.6]} 9. Bf4 {[%clk 0:02:55.1]} 9... O-O {[%clk
0:02:53.3]} 10. Ne5 {[%clk 0:02:55.1]} 10... Be6 {[%clk 0:02:52.6]} 11. Nxc6
{[%clk 0:02:53.5]} 11... bxc6 {[%clk 0:02:52.6]} 12. e4 {[%clk 0:02:53.7]} 12...
Qb6 {[%clk 0:02:47.8]} 13. e5 {[%clk 0:02:36.8]} 13... Nd7 {[%clk 0:02:39.8]}
14. Qd2 {[%clk 0:02:32.3]} 14... Rab8 {[%clk 0:02:39.3]} 15. Na4 {[%clk
0:02:15.8]} 15... Qb5 {[%clk 0:02:19]} 16. b3 {[%clk 0:02:14.7]} 16... cxb3
{[%clk 0:02:13.4]} 17. axb3 {[%clk 0:02:15.2]} 17... Qxb3 {[%clk 0:02:06.2]} 18.
Rfc1 {[%clk 0:02:07.2]} 18... Rfc8 {[%clk 0:02:04.6]} 19. Bf1 {[%clk 0:02:05.6]}
19... Bf5 {[%clk 0:01:18.3]} 20. e6 {[%clk 0:01:58.9]} 20... fxe6 {[%clk
0:01:12.3]} 21. Bxb8 {[%clk 0:01:58.8]} 21... Qxb8 {[%clk 0:01:05]} 22. Ba6
{[%clk 0:01:56.3]} 22... Rc7 {[%clk 0:01:00.7]} 23. Qf4 {[%clk 0:01:52.4]} 23...
g5 {[%clk 0:00:54.6]} 24. Qe3 {[%clk 0:01:44.4]} 24... Bf6 {[%clk 0:00:54.2]}
25. Bd3 {[%clk 0:01:33.2]} 25... Bxd3 {[%clk 0:00:41.1]} 26. Qxd3 {[%clk
0:01:32.9]} 26... Qb4 {[%clk 0:00:40]} 27. Qe3 {[%clk 0:01:22.6]} 27... Kf7
{[%clk 0:00:33.1]} 28. Rd1 {[%clk 0:01:20.7]} 28... c5 {[%clk 0:00:32.6]} 29.
Re1 {[%clk 0:00:47.1]} 29... Nf8 {[%clk 0:00:29]} 30. Nxc5 {[%clk 0:00:29.6]}
30... Qxd4 {[%clk 0:00:21.8]} 31. Qxd4 {[%clk 0:00:27.3]} 31... Bxd4 {[%clk
0:00:22.7]} 32. Na6 {[%clk 0:00:26.7]} 32... Rc2 {[%clk 0:00:20]} 33. Rad1
{[%clk 0:00:24.2]} 33... Bxf2+ {[%clk 0:00:20]} 34. Kh1 {[%clk 0:00:24.6]} 34...
Bxe1 {[%clk 0:00:20.2]} 35. Rxe1 {[%clk 0:00:25.2]} 35... d4 {[%clk 0:00:19.2]}
36. Nb4 {[%clk 0:00:25.4]} 36... Rb2 {[%clk 0:00:18.2]} 37. Nd3 {[%clk
0:00:24.3]} 37... Rd2 {[%clk 0:00:18.3]} 38. Rf1+ {[%clk 0:00:24]} 38... Ke7
{[%clk 0:00:17.3]} 39. Ne5 {[%clk 0:00:24.2]} 39... Ng6 {[%clk 0:00:15.4]} 40.
Rf7+ {[%clk 0:00:23.6]} 40... Ke8 {[%clk 0:00:16]} 41. Rxa7 {[%clk 0:00:22]}
41... Nxe5 {[%clk 0:00:15.8]} 42. Kg1 {[%clk 0:00:20.1]} 42... Nf3+ {[%clk
0:00:15.9]} 43. Kf1 {[%clk 0:00:19.8]} 43... Nxh2+ {[%clk 0:00:16.3]} 44. Ke1
{[%clk 0:00:20.3]} 44... Nf3+ {[%clk 0:00:17.2]} 45. Kf1 {[%clk 0:00:20.4]}
45... d3 {[%clk 0:00:17.6]} 46. g4 {[%clk 0:00:19.1]} 46... e5 {[%clk
0:00:17.4]} 47. Re7+ {[%clk 0:00:18.4]} 47... Kd8 {[%clk 0:00:15.7]} 48. Rd7+
{[%clk 0:00:18.4]} 48... Kc8 {[%clk 0:00:16.2]} 49. Rc7+ {[%clk 0:00:18.2]}
49... Kb8 {[%clk 0:00:15.8]} 50. Rb7+ {[%clk 0:00:18.4]} 50... Ka8 {[%clk
0:00:16.4]} 51. Ra7+ {[%clk 0:00:18.5]} 51... Kb8 {[%clk 0:00:17]} 52. Rb7+
{[%clk 0:00:18.8]} 52... Kc8 {[%clk 0:00:17.6]} 53. Rc7+ {[%clk 0:00:19.1]}
53... Kd8 {[%clk 0:00:18.2]} 54. Rd7+ {[%clk 0:00:19.2]} 54... Kxd7 {[%clk
0:00:18.4]} 1/2-1/2

[Event "Late-Titled-Tuesday-Blitz-September-19-2023"]
[Site "Chess.com"]
[Date "2023.09.19"]
[Round "7"]
[White "TigrVShlyape"]
[Black "cassoulet"]
[Result "0-1"]
[WhiteElo "2960"]
[BlackElo "2778"]
[TimeControl "180+1"]
[EndTime "15:15:25 PDT"]
[Termination "cassoulet won on time"]

1. e4 {[%clk 0:03:00.9]} 1... d6 {[%clk 0:02:58.1]} 2. d4 {[%clk 0:02:55.2]}
2... Nf6 {[%clk 0:02:58.7]} 3. Nc3 {[%clk 0:02:53.3]} 3... g6 {[%clk 0:02:59.1]}
4. Nf3 {[%clk 0:02:48.1]} 4... Bg7 {[%clk 0:02:59.5]} 5. h3 {[%clk 0:02:47.6]}
5... O-O {[%clk 0:02:58.6]} 6. Be3 {[%clk 0:02:47.6]} 6... Nbd7 {[%clk
0:02:58.2]} 7. Qd2 {[%clk 0:02:45.2]} 7... c5 {[%clk 0:02:58.5]} 8. d5 {[%clk
0:02:34]} 8... a6 {[%clk 0:02:58]} 9. a4 {[%clk 0:02:33.7]} 9... Qa5 {[%clk
0:02:58.2]} 10. Bd3 {[%clk 0:00:43.9]} 10... b5 {[%clk 0:02:51.7]} 11. O-O
{[%clk 0:00:41.6]} 11... b4 {[%clk 0:02:43.8]} 12. Ne2 {[%clk 0:00:37.1]} 12...
c4 {[%clk 0:02:37.2]} 13. Bxc4 {[%clk 0:00:34.3]} 13... Nxe4 {[%clk 0:02:37.1]}
14. Qc1 {[%clk 0:00:33.1]} 14... Nb6 {[%clk 0:02:29.8]} 15. Bd3 {[%clk
0:00:22.6]} 15... Nc5 {[%clk 0:02:29.6]} 16. Nf4 {[%clk 0:00:13.3]} 16... Nxd3
{[%clk 0:02:25.5]} 17. cxd3 {[%clk 0:00:12.4]} 17... Nxd5 {[%clk 0:02:19.8]} 18.
Qc6 {[%clk 0:00:12]} 18... Nxe3 {[%clk 0:02:13.7]} 19. fxe3 {[%clk 0:00:12.1]}
19... Rb8 {[%clk 0:02:08.6]} 20. d4 {[%clk 0:00:11.7]} 20... Bb7 {[%clk
0:02:07.8]} 21. Qd7 {[%clk 0:00:11.3]} 21... Qd8 {[%clk 0:01:54.7]} 22. Qxd8
{[%clk 0:00:10.4]} 22... Rfxd8 {[%clk 0:01:55.6]} 23. Rac1 {[%clk 0:00:10.1]}
23... Rdc8 {[%clk 0:01:55.4]} 24. Nd3 {[%clk 0:00:07.8]} 24... a5 {[%clk
0:01:52.8]} 25. Nd2 {[%clk 0:00:08]} 25... Ba6 {[%clk 0:01:52.5]} 26. Rxc8+
{[%clk 0:00:07.6]} 26... Rxc8 {[%clk 0:01:53.4]} 27. Rc1 {[%clk 0:00:07.7]}
27... Rxc1+ {[%clk 0:01:50.3]} 28. Nxc1 {[%clk 0:00:07.6]} 28... e5 {[%clk
0:01:50.9]} 29. Ncb3 {[%clk 0:00:07.9]} 29... Bh6 {[%clk 0:01:42]} 30. Kf2
{[%clk 0:00:07.5]} 30... exd4 {[%clk 0:01:41.6]} 31. Nxd4 {[%clk 0:00:06.9]}
31... Bg7 {[%clk 0:01:39.5]} 32. N2b3 {[%clk 0:00:07.2]} 32... Kf8 {[%clk
0:01:32.7]} 33. Nxa5 {[%clk 0:00:07.2]} 33... Ke8 {[%clk 0:01:24.8]} 34. Nac6
{[%clk 0:00:06.3]} 34... b3 {[%clk 0:01:22.3]} 35. a5 {[%clk 0:00:06.6]} 35...
Bb7 {[%clk 0:01:18.2]} 36. Nb4 {[%clk 0:00:06.2]} 36... Kd7 {[%clk 0:01:12.5]}
37. a6 {[%clk 0:00:05.5]} 37... Ba8 {[%clk 0:01:11.2]} 38. g4 {[%clk 0:00:04.6]}
38... Kc7 {[%clk 0:01:07.3]} 39. Nd3 {[%clk 0:00:03.8]} 39... Kb6 {[%clk
0:01:05.1]} 40. a7 {[%clk 0:00:04.1]} 40... Kxa7 {[%clk 0:01:01.1]} 41. Nb5+
{[%clk 0:00:04]} 41... Kb6 {[%clk 0:01:01.3]} 42. Nxd6 {[%clk 0:00:04.4]} 42...
Bd5 {[%clk 0:01:01]} 43. Ne8 {[%clk 0:00:03.5]} 43... Bh8 {[%clk 0:00:52.7]} 44.
g5 {[%clk 0:00:02.8]} 44... Bc4 {[%clk 0:00:50.7]} 45. Ke2 {[%clk 0:00:03.2]}
45... Bxb2 {[%clk 0:00:49.7]} 46. Nd6 {[%clk 0:00:03.5]} 46... Bxd3+ {[%clk
0:00:33.2]} 47. Kxd3 {[%clk 0:00:03.8]} 47... Bc1 {[%clk 0:00:32.4]} 48. Nxf7
{[%clk 0:00:02.5]} 48... Bxe3 {[%clk 0:00:31.1]} 49. Kc3 {[%clk 0:00:01.9]}
49... Kc6 {[%clk 0:00:27.3]} 50. h4 {[%clk 0:00:01.5]} 50... Bf4 {[%clk
0:00:25.3]} 51. Kxb3 {[%clk 0:00:01]} 51... Kd7 {[%clk 0:00:24.1]} 0-1

[Event "Late-Titled-Tuesday-Blitz-September-19-2023"]
[Site "Chess.com"]
[Date "2023.09.19"]
[Round "7"]
[White "DTChess"]
[Black "Alexei_Gubajdullin"]
[Result "0-1"]
[WhiteElo "2532"]
[BlackElo "2652"]
[TimeControl "180+1"]
[EndTime "15:15:30 PDT"]
[Termination "Alexei_Gubajdullin won by resignation"]

1. e4 {[%clk 0:03:00.9]} 1... g6 {[%clk 0:02:58.7]} 2. d4 {[%clk 0:03:00.6]}
2... d6 {[%clk 0:02:59]} 3. Nc3 {[%clk 0:03:00.6]} 3... Bg7 {[%clk 0:02:59.1]}
4. Be3 {[%clk 0:03:00.4]} 4... a6 {[%clk 0:02:58.9]} 5. f3 {[%clk 0:03:00.1]}
5... b5 {[%clk 0:02:57.7]} 6. a3 {[%clk 0:02:59.6]} 6... Nd7 {[%clk 0:02:57.3]}
7. Qd2 {[%clk 0:02:59.3]} 7... c5 {[%clk 0:02:52]} 8. dxc5 {[%clk 0:02:57.6]}
8... Nxc5 {[%clk 0:02:51.9]} 9. Nge2 {[%clk 0:02:56.3]} 9... Bb7 {[%clk
0:02:48.4]} 10. Nd4 {[%clk 0:02:56.3]} 10... Rc8 {[%clk 0:02:46.8]} 11. h4
{[%clk 0:02:56]} 11... Nf6 {[%clk 0:02:39.5]} 12. O-O-O {[%clk 0:02:54.4]} 12...
Qa5 {[%clk 0:02:27]} 13. Kb1 {[%clk 0:02:47.4]} 13... h5 {[%clk 0:02:15.7]} 14.
Be2 {[%clk 0:02:30.2]} 14... Nfd7 {[%clk 0:02:00.1]} 15. g4 {[%clk 0:02:10.2]}
15... hxg4 {[%clk 0:01:52.9]} 16. fxg4 {[%clk 0:02:09.4]} 16... b4 {[%clk
0:01:50.7]} 17. Na2 {[%clk 0:02:05.3]} 17... Nxe4 {[%clk 0:01:47.6]} 18. Qxb4
{[%clk 0:01:56.2]} 18... Qxb4 {[%clk 0:01:46.9]} 19. Nxb4 {[%clk 0:01:55.5]}
19... Ng3 {[%clk 0:01:45.9]} 20. Rh2 {[%clk 0:01:45.8]} 20... Nxe2 {[%clk
0:01:44.6]} 21. Nxe2 {[%clk 0:01:41.3]} 21... Ne5 {[%clk 0:01:42.1]} 22. g5
{[%clk 0:01:36.6]} 22... Ng4 {[%clk 0:01:33.5]} 23. Rh3 {[%clk 0:01:31.5]} 23...
Nxe3 {[%clk 0:01:33.1]} 24. Rxe3 {[%clk 0:01:31.4]} 24... Kf8 {[%clk 0:01:00.1]}
25. Rh3 {[%clk 0:01:23]} 25... Rc5 {[%clk 0:00:55.4]} 26. Rg1 {[%clk 0:01:10.9]}
26... Re5 {[%clk 0:00:49.3]} 27. Nc3 {[%clk 0:01:07.1]} 27... Rf5 {[%clk
0:00:44.7]} 28. Nd3 {[%clk 0:01:00.8]} 28... Bxc3 {[%clk 0:00:41.9]} 29. bxc3
{[%clk 0:01:00.7]} 29... Rf3 {[%clk 0:00:41.7]} 30. Rxf3 {[%clk 0:00:57.4]}
30... Bxf3 {[%clk 0:00:41.4]} 31. Rg3 {[%clk 0:00:57.5]} 31... Bd5 {[%clk
0:00:37.6]} 32. Nb4 {[%clk 0:00:54.3]} 32... Bc4 {[%clk 0:00:37.3]} 33. Rg4
{[%clk 0:00:52.7]} 33... d5 {[%clk 0:00:37.3]} 34. Kc1 {[%clk 0:00:47.9]} 34...
e5 {[%clk 0:00:37.1]} 35. Kd2 {[%clk 0:00:47.9]} 35... Kg7 {[%clk 0:00:36.7]}
36. Nc6 {[%clk 0:00:42.5]} 36... Re8 {[%clk 0:00:36.1]} 37. Na5 {[%clk 0:00:41]}
37... Bb5 {[%clk 0:00:32.8]} 38. a4 {[%clk 0:00:40.4]} 38... Bd7 {[%clk
0:00:32.3]} 39. Rb4 {[%clk 0:00:38.3]} 39... Bf5 {[%clk 0:00:30.5]} 40. Nb7
{[%clk 0:00:35.1]} 40... Rh8 {[%clk 0:00:27.4]} 41. Nc5 {[%clk 0:00:31.3]} 41...
e4 {[%clk 0:00:26.4]} 42. Nxa6 {[%clk 0:00:30]} 42... Rxh4 {[%clk 0:00:25.9]}
43. Nc5 {[%clk 0:00:28.6]} 43... Rh3 {[%clk 0:00:25.6]} 44. a5 {[%clk
0:00:24.4]} 44... Bg4 {[%clk 0:00:25.6]} 45. Nxe4 {[%clk 0:00:23.4]} 45... dxe4
{[%clk 0:00:25]} 46. Rxe4 {[%clk 0:00:23.6]} 46... Bf3 {[%clk 0:00:24.1]} 47.
Ra4 {[%clk 0:00:22.6]} 47... Rg3 {[%clk 0:00:22.9]} 48. a6 {[%clk 0:00:21.2]}
48... Rxg5 {[%clk 0:00:22.9]} 49. a7 {[%clk 0:00:21.6]} 49... Ba8 {[%clk
0:00:23]} 50. c4 {[%clk 0:00:21.3]} 50... Rf5 {[%clk 0:00:22.7]} 51. Kd3 {[%clk
0:00:20.6]} 51... g5 {[%clk 0:00:22.8]} 52. Kd4 {[%clk 0:00:21.1]} 52... g4
{[%clk 0:00:22.9]} 53. c5 {[%clk 0:00:21.5]} 53... g3 {[%clk 0:00:22.7]} 54. Ra1
{[%clk 0:00:21.4]} 54... g2 {[%clk 0:00:22.6]} 55. Rg1 {[%clk 0:00:21]} 55...
Rf1 {[%clk 0:00:22.4]} 56. Rxg2+ {[%clk 0:00:18.1]} 56... Bxg2 {[%clk
0:00:21.7]} 0-1

[Event "Late-Titled-Tuesday-Blitz-September-19-2023"]
[Site "Chess.com"]
[Date "2023.09.19"]
[Round "7"]
[White "Nikachu"]
[Black "sebastianmarinp"]
[Result "1/2-1/2"]
[WhiteElo "2203"]
[BlackElo "2407"]
[TimeControl "180+1"]
[EndTime "15:15:30 PDT"]
[Termination "Game drawn by repetition"]

1. d4 {[%clk 0:03:00.9]} 1... d5 {[%clk 0:02:58.5]} 2. c4 {[%clk 0:03:00.8]}
2... c6 {[%clk 0:02:58.7]} 3. Nc3 {[%clk 0:03:00.8]} 3... Nf6 {[%clk 0:02:57.6]}
4. e3 {[%clk 0:03:00.5]} 4... e6 {[%clk 0:02:54.7]} 5. Nf3 {[%clk 0:03:00.6]}
5... Nbd7 {[%clk 0:02:48.6]} 6. Bd3 {[%clk 0:03:00.3]} 6... dxc4 {[%clk
0:02:47.3]} 7. Bxc4 {[%clk 0:03:01.2]} 7... b5 {[%clk 0:02:47.3]} 8. Bd3 {[%clk
0:03:01]} 8... Bb7 {[%clk 0:02:46.9]} 9. O-O {[%clk 0:02:59.5]} 9... a6 {[%clk
0:02:46.5]} 10. b3 {[%clk 0:02:57.9]} 10... c5 {[%clk 0:02:45.8]} 11. Bb2 {[%clk
0:02:53.6]} 11... cxd4 {[%clk 0:02:42.6]} 12. Nxd4 {[%clk 0:02:53]} 12... Be7
{[%clk 0:02:38.4]} 13. Rc1 {[%clk 0:02:45.6]} 13... O-O {[%clk 0:02:37.3]} 14.
Qe2 {[%clk 0:02:45.6]} 14... Ne5 {[%clk 0:02:32.8]} 15. Bb1 {[%clk 0:02:43.7]}
15... Rc8 {[%clk 0:02:23]} 16. Rfd1 {[%clk 0:02:42.7]} 16... Qb6 {[%clk
0:02:18.8]} 17. f4 {[%clk 0:02:36.4]} 17... Ng6 {[%clk 0:02:09.2]} 18. g3 {[%clk
0:02:10.6]} 18... Rfd8 {[%clk 0:02:07.6]} 19. h4 {[%clk 0:02:10.2]} 19... Bf8
{[%clk 0:02:03.1]} 20. h5 {[%clk 0:02:09.9]} 20... Ne7 {[%clk 0:02:03.1]} 21. g4
{[%clk 0:02:04.2]} 21... Ned5 {[%clk 0:01:47.1]} 22. g5 {[%clk 0:01:23.2]} 22...
Nxc3 {[%clk 0:01:43.1]} 23. Bxc3 {[%clk 0:01:24.1]} 23... Ne4 {[%clk 0:01:37.6]}
24. Bb2 {[%clk 0:01:12.6]} 24... Rxc1 {[%clk 0:01:33.8]} 25. Rxc1 {[%clk
0:01:13.5]} 25... Ba8 {[%clk 0:01:20.6]} 26. Kh2 {[%clk 0:01:12.9]} 26... Qb7
{[%clk 0:01:17.6]} 27. Rg1 {[%clk 0:01:11]} 27... g6 {[%clk 0:01:07.7]} 28. Rc1
{[%clk 0:00:56.1]} 28... e5 {[%clk 0:00:46.6]} 29. hxg6 {[%clk 0:00:45.5]} 29...
hxg6 {[%clk 0:00:43.8]} 30. Nf3 {[%clk 0:00:44.2]} 30... exf4 {[%clk 0:00:32.5]}
31. exf4 {[%clk 0:00:42.3]} 31... Bd6 {[%clk 0:00:15.7]} 32. Qxe4 {[%clk
0:00:03.1]} 32... Qxe4 {[%clk 0:00:14.7]} 33. Bxe4 {[%clk 0:00:04]} 33... Bxe4
{[%clk 0:00:14.5]} 34. Ne5 {[%clk 0:00:04]} 34... Bxe5 {[%clk 0:00:09.9]} 35.
Bxe5 {[%clk 0:00:04.9]} 35... Rd2+ {[%clk 0:00:09.5]} 36. Kg3 {[%clk 0:00:04.2]}
36... Rg2+ {[%clk 0:00:08.1]} 37. Kh3 {[%clk 0:00:04.1]} 37... Rc2 {[%clk
0:00:07.9]} 38. Rxc2 {[%clk 0:00:03.8]} 38... Bxc2 {[%clk 0:00:07.3]} 39. b4
{[%clk 0:00:04.2]} 39... Bb1 {[%clk 0:00:06.1]} 40. a3 {[%clk 0:00:04]} 40...
Bf5+ {[%clk 0:00:05.7]} 41. Kg3 {[%clk 0:00:04.4]} 41... Kf8 {[%clk 0:00:06.1]}
42. Kf2 {[%clk 0:00:04.9]} 42... Ke7 {[%clk 0:00:06.3]} 43. Ke3 {[%clk
0:00:05.8]} 43... Kd7 {[%clk 0:00:06.8]} 44. Kd4 {[%clk 0:00:06.2]} 44... Kc6
{[%clk 0:00:07.1]} 45. Bf6 {[%clk 0:00:06]} 45... Be6 {[%clk 0:00:07.3]} 46. Be5
{[%clk 0:00:06.5]} 46... Bd5 {[%clk 0:00:07.4]} 47. Bf6 {[%clk 0:00:06.8]} 47...
Be6 {[%clk 0:00:07.9]} 48. Be5 {[%clk 0:00:06.7]} 48... Bf5 {[%clk 0:00:08.2]}
49. Bf6 {[%clk 0:00:07.3]} 49... Be6 {[%clk 0:00:08.7]} 1/2-1/2

[Event "Late-Titled-Tuesday-Blitz-September-19-2023"]
[Site "Chess.com"]
[Date "2023.09.19"]
[Round "7"]
[White "SAInt_666"]
[Black "IvanRadivojevic"]
[Result "0-1"]
[WhiteElo "2653"]
[BlackElo "2572"]
[TimeControl "180+1"]
[EndTime "15:15:32 PDT"]
[Termination "IvanRadivojevic won on time"]

1. g3 {[%clk 0:02:50.7]} 1... e5 {[%clk 0:02:57]} 2. d3 {[%clk 0:02:47.2]} 2...
Nc6 {[%clk 0:02:57.3]} 3. Bg2 {[%clk 0:02:47.8]} 3... g6 {[%clk 0:02:57.7]} 4.
Nf3 {[%clk 0:02:48.4]} 4... Bg7 {[%clk 0:02:58.3]} 5. O-O {[%clk 0:02:49.2]}
5... d6 {[%clk 0:02:58.8]} 6. Nbd2 {[%clk 0:02:49.4]} 6... Be6 {[%clk 0:02:59]}
7. c4 {[%clk 0:02:49.9]} 7... Qd7 {[%clk 0:02:59.3]} 8. a3 {[%clk 0:02:50.3]}
8... Bh3 {[%clk 0:02:59.2]} 9. b4 {[%clk 0:02:49.2]} 9... h5 {[%clk 0:02:59.2]}
10. Bxh3 {[%clk 0:02:49.1]} 10... Qxh3 {[%clk 0:02:58.4]} 11. Ng5 {[%clk
0:02:50]} 11... Qd7 {[%clk 0:02:57.7]} 12. h4 {[%clk 0:02:50.4]} 12... Nge7
{[%clk 0:02:44.8]} 13. Bb2 {[%clk 0:02:38.2]} 13... Nf5 {[%clk 0:02:43]} 14. b5
{[%clk 0:02:36]} 14... Nd8 {[%clk 0:02:41.8]} 15. e4 {[%clk 0:02:33.1]} 15...
Ne7 {[%clk 0:02:34.9]} 16. Kg2 {[%clk 0:02:24.4]} 16... Ne6 {[%clk 0:02:34.5]}
17. Nxe6 {[%clk 0:02:14.9]} 17... fxe6 {[%clk 0:02:22.3]} 18. Nf3 {[%clk
0:02:15.2]} 18... O-O-O {[%clk 0:02:16.8]} 19. Bc1 {[%clk 0:01:57.9]} 19... Rdf8
{[%clk 0:02:14.8]} 20. Be3 {[%clk 0:01:56.4]} 20... Kb8 {[%clk 0:02:13.6]} 21.
Qa4 {[%clk 0:01:53.7]} 21... Nc8 {[%clk 0:02:13.9]} 22. Rad1 {[%clk 0:01:33.7]}
22... Bh6 {[%clk 0:02:11.6]} 23. Bxh6 {[%clk 0:01:31.7]} 23... Rxh6 {[%clk
0:02:12.5]} 24. Qc2 {[%clk 0:01:30.9]} 24... Rh7 {[%clk 0:02:11.9]} 25. Ng5
{[%clk 0:01:29.8]} 25... Rg7 {[%clk 0:02:06.8]} 26. a4 {[%clk 0:01:29.3]} 26...
Qe7 {[%clk 0:02:01.2]} 27. a5 {[%clk 0:01:28.3]} 27... d5 {[%clk 0:01:54.7]} 28.
c5 {[%clk 0:01:20.9]} 28... Qf6 {[%clk 0:01:48.6]} 29. c6 {[%clk 0:01:17.2]}
29... b6 {[%clk 0:01:40.4]} 30. axb6 {[%clk 0:01:17.8]} 30... cxb6 {[%clk
0:01:37.1]} 31. Qa2 {[%clk 0:01:15.4]} 31... Rd8 {[%clk 0:01:30.4]} 32. Rc1
{[%clk 0:00:49.8]} 32... Rc7 {[%clk 0:01:30.1]} 33. Qb2 {[%clk 0:00:46.4]} 33...
Nd6 {[%clk 0:01:21.7]} 34. f4 {[%clk 0:00:42.7]} 34... d4 {[%clk 0:01:11.3]} 35.
Qb3 {[%clk 0:00:35.1]} 35... Re8 {[%clk 0:01:07.1]} 36. Rf2 {[%clk 0:00:21.3]}
36... exf4 {[%clk 0:01:06.4]} 37. gxf4 {[%clk 0:00:17.8]} 37... e5 {[%clk
0:01:06.3]} 38. Rcf1 {[%clk 0:00:14]} 38... exf4 {[%clk 0:01:06]} 39. Rxf4
{[%clk 0:00:14.9]} 39... Qe5 {[%clk 0:01:06.5]} 40. Rf8 {[%clk 0:00:14.7]} 40...
Rcc8 {[%clk 0:01:00.2]} 41. Rxe8 {[%clk 0:00:12.4]} 41... Rxe8 {[%clk 0:01:00]}
42. Nf7 {[%clk 0:00:06.8]} 42... Qxb5 {[%clk 0:00:48.4]} 43. Qa3 {[%clk
0:00:03.2]} 43... Nc8 {[%clk 0:00:45.1]} 44. c7+ {[%clk 0:00:02.1]} 44... Kxc7
{[%clk 0:00:44]} 45. Nd6 {[%clk 0:00:03]} 45... Nxd6 {[%clk 0:00:21.7]} 46.
Qxa7+ {[%clk 0:00:03.2]} 46... Kd8 {[%clk 0:00:22.3]} 47. Qb8+ {[%clk
0:00:02.4]} 47... Ke7 {[%clk 0:00:21.7]} 48. Qc7+ {[%clk 0:00:01.1]} 48... Qd7
{[%clk 0:00:22.3]} 49. Qxb6 {[%clk 0:00:01.2]} 49... Qg4+ {[%clk 0:00:22.1]} 50.
Kh1 {[%clk 0:00:01.7]} 50... Qxh4+ {[%clk 0:00:22.1]} 0-1

[Event "Late-Titled-Tuesday-Blitz-September-19-2023"]
[Site "Chess.com"]
[Date "2023.09.19"]
[Round "7"]
[White "azikom"]
[Black "santosalberto1987"]
[Result "1-0"]
[WhiteElo "2628"]
[BlackElo "2507"]
[TimeControl "180+1"]
[EndTime "15:15:32 PDT"]
[Termination "azikom won on time"]

1. c4 {[%clk 0:03:00.5]} 1... c6 {[%clk 0:02:59.8]} 2. e4 {[%clk 0:02:58.4]}
2... d5 {[%clk 0:02:59.8]} 3. exd5 {[%clk 0:02:58.2]} 3... cxd5 {[%clk
0:03:00.7]} 4. cxd5 {[%clk 0:02:59.1]} 4... Nf6 {[%clk 0:03:00.5]} 5. Qa4+
{[%clk 0:02:54.6]} 5... Nbd7 {[%clk 0:03:00.3]} 6. Nc3 {[%clk 0:02:53.4]} 6...
g6 {[%clk 0:02:58.1]} 7. Bc4 {[%clk 0:02:52.6]} 7... Bg7 {[%clk 0:02:58.3]} 8.
d3 {[%clk 0:02:51.8]} 8... O-O {[%clk 0:02:58.2]} 9. Nge2 {[%clk 0:02:45.7]}
9... a6 {[%clk 0:02:35.7]} 10. Qa3 {[%clk 0:02:44.3]} 10... b6 {[%clk
0:02:35.8]} 11. Be3 {[%clk 0:02:35.9]} 11... Bb7 {[%clk 0:02:35.2]} 12. Nf4
{[%clk 0:02:21.4]} 12... b5 {[%clk 0:02:33.6]} 13. Bb3 {[%clk 0:02:20.7]} 13...
Nb6 {[%clk 0:02:29.3]} 14. Qc5 {[%clk 0:02:16.7]} 14... Nfd7 {[%clk 0:02:27.3]}
15. Qb4 {[%clk 0:02:14.8]} 15... Nf6 {[%clk 0:02:23.2]} 16. d6 {[%clk
0:02:04.5]} 16... exd6 {[%clk 0:02:18]} 17. O-O {[%clk 0:02:01.2]} 17... Ng4
{[%clk 0:02:04.1]} 18. Bd2 {[%clk 0:01:39.7]} 18... Ne5 {[%clk 0:01:51]} 19. Ne4
{[%clk 0:00:55.8]} 19... g5 {[%clk 0:01:00.2]} 20. Nh5 {[%clk 0:00:53.9]} 20...
Nxd3 {[%clk 0:01:00]} 21. Qxd6 {[%clk 0:00:52.9]} 21... Bxe4 {[%clk 0:00:59.3]}
22. Qg3 {[%clk 0:00:46.4]} 22... Bg6 {[%clk 0:00:34.1]} 23. Bxg5 {[%clk
0:00:44.3]} 23... Qb8 {[%clk 0:00:21.6]} 24. Nxg7 {[%clk 0:00:43.6]} 24... Qxg3
{[%clk 0:00:20.2]} 25. fxg3 {[%clk 0:00:42.5]} 25... Kxg7 {[%clk 0:00:20.3]} 26.
Bf6+ {[%clk 0:00:39.5]} 26... Kg8 {[%clk 0:00:20.3]} 27. g4 {[%clk 0:00:32.6]}
27... Nc5 {[%clk 0:00:18.3]} 28. Bd1 {[%clk 0:00:28.5]} 28... Rfe8 {[%clk
0:00:16]} 29. h4 {[%clk 0:00:23.7]} 29... h6 {[%clk 0:00:14.7]} 30. Bf3 {[%clk
0:00:20.1]} 30... Rac8 {[%clk 0:00:12.9]} 31. Rad1 {[%clk 0:00:18.5]} 31... Nc4
{[%clk 0:00:12.5]} 32. Rfe1 {[%clk 0:00:13.5]} 32... Rxe1+ {[%clk 0:00:11]} 33.
Rxe1 {[%clk 0:00:13.1]} 33... Nd3 {[%clk 0:00:10.9]} 34. Re7 {[%clk 0:00:12]}
34... Ndxb2 {[%clk 0:00:10.6]} 35. h5 {[%clk 0:00:11.8]} 35... Bh7 {[%clk
0:00:07.9]} 36. Bb7 {[%clk 0:00:10.5]} 36... Rf8 {[%clk 0:00:06]} 37. Bxa6
{[%clk 0:00:09.5]} 37... Bd3 {[%clk 0:00:03.3]} 38. Bxb5 {[%clk 0:00:08.8]}
38... Rb8 {[%clk 0:00:01.6]} 39. Bc6 {[%clk 0:00:08.3]} 1-0